Cogmind - Beta 15 @@@ ROGUE MODE // 2025.07.29 @ 23:40:59 Player: P9H Result: Destroyed by 4L-7Y0(j) with Overtuned Pulse Rifle Performance ------------- Evolutions (0) 0 Regions Visited (3) 600 Robots Destroyed (5) 25 Value Destroyed (183) 183 Prototype IDs (0) 0 Alien Tech Used (0) 0 Bonus (782) 782 TOTAL SCORE: 1590 Bonus ------- Registered with UFD 300 Met Optimus in HQ 500 Friendly Fire -18 Cogmind --------- Core Integrity 0/250 Matter 248/300 Energy 143/250 System Corruption 0% Temperature Warm (143) Movement Treading (360) Ox11 Location -9/Scraptown Parts ------- > --- POWER (1) -------- Ion Engine > --- PROPULSION (2) --- Overtuned Treads > --- UTILITY (2) ------ Humpback > --- WEAPON (2) ------- Gauss Rifle Powered Hammer > --- INVENTORY (35) --- Light Deuterium Engine Light Treads Light Treads Improved Heat Sink Large Storage Unit Matter Compressor (206) Signal Interpreter Weapon Cycler Hardened Heavy Armor Plating Makeshift Light Armor Plating Tractor Beam Mapping Drone Bay (0/3) Salvaging Laser Salvaging Laser Flak Gun Peak State ------------ > --- POWER ------------ Light Fission Core > --- PROPULSION ------- Overtuned Treads Overtuned Treads > --- UTILITY ---------- Humpback > --- WEAPON ----------- Barrage Gun Overtuned Barrage Gun > --- INVENTORY -------- Ion Engine Light Deuterium Engine Light Treads Light Treads Improved Heat Sink Large Storage Unit Matter Compressor Signal Interpreter Weapon Cycler Hardened Heavy Armor Plating Makeshift Light Armor Plating Tractor Beam Mapping Drone Bay Salvaging Laser Salvaging Laser Salvaging Laser Flak Gun Powered Hammer [Rating: 24] Favorites ----------- Power Light Fission Core Engine Ion Engine Power Core Light Fission Core Propulsion Compact Wheel Treads Overtuned Treads Wheel Compact Wheel Utility Small Storage Unit Device Improved Heat Sink Storage Small Storage Unit Weapon Salvaging Laser Energy Gun Salvaging Laser Ballistic Gun Flak Gun Impact Weapon Powered Hammer Build | -11 -10 -10 -9 ------- Run | Yrd Mat Sub Scr Slots Evolved . | . . . . Power . | . . . . Propulsion . | . . . . Utility . | . . . . Weapon . | . . . . Parts Attached 22 | 6 2 1 13 Power 3 | 1 . . 2 Engine 2 | 1 . . 1 Core 1 | . . . 1 Reactor . | . . . . Propulsion 5 | 3 . . 2 Treads 3 | 1 . . 2 Leg . | . . . . Wheel 2 | 2 . . . Hover . | . . . . Flight . | . . . . Utility 7 | 1 1 1 4 Device 3 | . 1 1 1 Storage 4 | 1 . . 3 Processor . | . . . . Hackware . | . . . . Protection . | . . . . Artifact . | . . . . Weapon 7 | 1 1 . 5 Energy Gun 1 | . 1 . . Energy Cannon . | . . . . Ballistic Gun 5 | 1 . . 4 Ballistic Cannon . | . . . . Launcher . | . . . . Special Weapon . | . . . . Impact Weapon 1 | . . . 1 Slashing Weapon . | . . . . Piercing Weapon . | . . . . Special Melee Weapon . | . . . . Unidentified Prototypes . | . . . . Parts Lost 6 | . . . 6 Power 1 | . . . 1 Propulsion 3 | . . . 3 Utility . | . . . . Weapon 2 | . . . 2 Highest Loss Streak 5 | . . . 5 To Critical Strikes . | . . . . Average Backups 10 | 3 5 7 11 Power 1 | . 1 3 1 Propulsion 2 | 2 2 2 2 Utility 4 | . . . 4 Weapon 2 | 1 2 2 3 Tool/Special . | . . . . Unused Backups 15 | . 1 . 14 Power 3 | . . . 3 Propulsion 1 | . . . 1 Utility 6 | . . . 6 Weapon 5 | . 1 . 4 Tool/Special . | . . . . Average Slot Usage (%) 94 | . 78 100 94 Engine 5 | . 14 14 4 Core 8 | . . . 9 Wheel 27 | . 28 28 27 Device 9 | . 4 14 9 Storage 13 | . 14 14 13 Energy Gun 12 | . 3 14 13 Ballistic Gun 14 | . 14 14 14 Peak Build Rating 24 | 5 7 9 24 Average Rating 15 | 3 5 7 16 On Entrance 5 | . 5 7 9 Naked Turns . | . . . . Heaviest Build 213 | 12 14 14 213 Greatest Support 36 | 26 26 26 36 Greatest Overweight (x) 13 | . . . 13 Average Overweight (x) 1 | . . . 1 Largest Inventory Capacity 35 | 8 8 8 35 Average Capacity 16 | 6 8 8 17 Most Carried 22 | 5 8 8 22 Average Carried 11 | 3 5 7 11 Final Capacity 35 | 8 8 8 35 Final Carried 16 | 5 7 8 16 Class Distribution -------------------- 73% | Mutant 26% | Hauler-Mutant Dominant Class ---------------- Mutant | -10/Materials Mutant | -10/Subcaves Mutant | -9/Scraptown Resources | -11 -10 -10 -9 ----------- Run | Yrd Mat Sub Scr Matter Collected 660 | 30 170 88 372 Remotely . | . . . . Salvage Created 252 | . . 47 205 Parts 11 | . . 1 10 Haulers Intercepted . | . . . . Recyclers Shooed . | . . . . Parts Field Recycled . | . . . . Retrieved Matter . | . . . . Parts Self-Destructed 14 | . . 10 4 Prevented . | . . . . Kills | -11 -10 -10 -9 ------- Run | Yrd Mat Sub Scr Combat Hostiles Destroyed 4 | . . 1 3 Melee 1 | . . . 1 Guns 3 | . . 1 2 Classes Destroyed 4 | . . 2 2 Turret 1 | . . 1 . Swarmer 1 | . . 1 . Ranger 1 | . . . 1 Scrapper 2 | . . . 2 Best Kill Streak 2 | . . 2 1 Combat Bots Only 1 | . . 1 1 Max Kills in Single Turn 1 | . . 1 1 Gunslinging . | . . . . Exploded . | . . . . Melee 1 | . . . 1 Uniques/NPCs Destroyed . | . . . . Combat | -11 -10 -10 -9 -------- Run | Yrd Mat Sub Scr Hostile Shots Fired 150 | . . 35 115 Missed 50 | . . 21 29 Hits 100 | . . 14 86 Projectile 100 | . . 14 86 Critical Strikes 4 | . . . 4 Damage Taken 1367 | . . 135 1232 Core 264 | . . 45 219 Absorbed by Shields . | . . . . Core Remaining (%) 100 | 100 . . . Volleys Fired 19 | . 2 8 9 Largest 2 | . 1 2 2 Hottest 58 | . 20 50 58 Shots Fired 31 | . 2 14 15 Gun 31 | . 2 14 15 Cannon . | . . . . Launcher . | . . . . Special . | . . . . Kinetic 21 | . 2 8 11 Thermal 10 | . . 6 4 Explosive . | . . . . Electromagnetic . | . . . . Robot Hit Streak 8 | . 2 5 8 Robot Miss Streak 6 | . . 3 6 Penetration Max . | . . . . Secondary Targets . | . . . . Shots Hit Robots 23 | . 2 9 12 Core Hits 13 | . 1 4 8 Critical Kills 1 | . . . 1 Critical Parts Destroyed . | . . . . Critical Strikes 1 | . . . 1 Destroy 1 | . . . 1 Melee Attacks 3 | . . . 3 Impact 3 | . . . 3 Slashing . | . . . . Piercing . | . . . . Sneak Attacks . | . . . . Combat Hostiles . | . . . . Follow-up Attacks . | . . . . Damage Inflicted 353 | . 25 102 226 Guns 264 | . 25 102 137 Cannons . | . . . . Explosions . | . . . . Melee 89 | . . . 89 Ramming . | . . . . Kinetic 208 | . 25 74 109 Thermal 56 | . . 28 28 Explosive . | . . . . Electromagnetic . | . . . . Impact 89 | . . . 89 Slashing . | . . . . Piercing . | . . . . Highest Corruption . | . . . . Average Corruption . | . . . . Corruption Purged . | . . . . Corruption Blocked . | . . . . Overload Shots . | . . . . Overflow Damage . | . . . . Projectiles . | . . . . Explosions . | . . . . Melee . | . . . . Knockbacks 1 | . . . 1 Impact 1 | . . . 1 Kinetic . | . . . . Secondary . | . . . . Self-Inflicted Damage . | . . . . Shots . | . . . . Rammed . | . . . . Targets Rammed . | . . . . Kicked . | . . . . Crushed . | . . . . Highest Temperature 179 | . . . 179 Average Temperature 61 | . . . 61 Received Heat Transfer 802 | . . 84 718 Siege Activations . | . . . . Martial Activations . | . . . . Shielding Activations . | . . . . Robots Disrupted . | . . . . Combat Hostiles . | . . . . Robots Corrupted . | . . . . Combat Hostiles . | . . . . Parts Fried . | . . . . Impact Corruptions . | . . . . Robots Melted . | . . . . Combat Hostiles . | . . . . Parts Melted 2 | . . . 2 Heat Transferred 110 | . . 75 35 Parts Sabotaged . | . . . . Parts Stolen . | . . . . Parts Stripped . | . . . . Power Chain Reactions . | . . . . Alert | -11 -10 -10 -9 ------- Run | Yrd Mat Sub Scr Maximum Alert Level . | . . . . Low Security (%) 100 | 100 100 . . Level 1 . | . . . . Level 2 . | . . . . Level 3 . | . . . . Level 4 . | . . . . Level 5 . | . . . . High Security . | . . . . Max Security . | . . . . Peak Influence . | . . . . Initial . | . . . . Average . | . . . . Influence Increases 115 | . . 115 . Destroy 0b10 Robot/C 40 | . . 40 . Lose Combat Pursuer 75 | . . 75 . Influence Decreases 115 | . . 40 75 Entered New Map 75 | . . . 75 Time Decay 40 | . . 40 . Squads Dispatched 1 | . 1 . . Investigation 1 | . 1 . . Extermination . | . . . . Reinforcement . | . . . . Assault . | . . . . Garrison . | . . . . Intercept . | . . . . Searches Triggered . | . . . . Construction Impeded . | . . . . Haulers Reinforced . | . . . . Active Scanning Responses . | . . . . Cargo Convoy Interrupts . | . . . . Stealth | -11 -10 -10 -9 --------- Run | Yrd Mat Sub Scr Distress Signals . | . . . . Communications Jammed . | . . . . Distress Signals . | . . . . Times Spotted 28 | . 2 6 20 Peak Tracking Total 8 | . 2 5 8 Tactical Retreats 1 | . . 1 . Traps | -11 -10 -10 -9 ------- Run | Yrd Mat Sub Scr Traps Triggered . | . . . . Indirectly . | . . . . Trap Hack Attempts . | . . . . Triggered . | . . . . Disarmed . | . . . . Reprogrammed . | . . . . Reused . | . . . . Traps Extracted . | . . . . Installed . | . . . . Triggered . | . . . . Machines | -11 -10 -10 -9 ---------- Run | Yrd Mat Sub Scr Machines Disabled . | . . . . Max in Single Turn . | . . . . Machines Repaired . | . . . . Machines Dismantled . | . . . . Machines Sabotaged . | . . . . Overloaded Fab Kills . | . . . . Hacking | -11 -10 -10 -9 --------- Run | Yrd Mat Sub Scr Machines Accessed 3 | . . . 3 Terminals . | . . . . Fabricators . | . . . . Repair Stations . | . . . . Recycling Units . | . . . . Scanalyzers . | . . . . Garrison Access . | . . . . Total Hacks 6 | . . . 6 Successful 6 | . . . 6 Failed . | . . . . Catastrophic . | . . . . Database Lockouts . | . . . . Manual . | . . . . Terminals . | . . . . Fabricators . | . . . . Repair Stations . | . . . . Recycling Units . | . . . . Scanalyzers . | . . . . Garrison Access . | . . . . Terminal Hacks 6 | . . . 6 Record 6 | . . . 6 Fabricator Hacks . | . . . . Repair Station Hacks . | . . . . Recycling Unit Hacks . | . . . . Scanalyzer . | . . . . Garrison Access Hacks . | . . . . Unauthorized Hacks . | . . . . Terminals . | . . . . Fabricators . | . . . . Repair Stations . | . . . . Recycling Units . | . . . . Scanalyzers . | . . . . Garrison Access . | . . . . Data Cores Recovered . | . . . . Used . | . . . . Hacking Detections . | . . . . Full Trace Events . | . . . . Feedback Events . | . . . . Feedback Blocked . | . . . . Robot Schematics Acquired . | . . . . Robots Built . | . . . . Authchips . | . . . . Time . | . . . . Total Robot Build Rating . | . . . . Part Schematics Acquired . | . . . . Parts Built . | . . . . Authchips . | . . . . Time . | . . . . Total Part Build Rating . | . . . . Parts Repaired . | . . . . Time . | . . . . Parts Recycled . | . . . . Recycled Matter . | . . . . Retrieved Matter . | . . . . Retrieved Components . | . . . . Parts Scanalyzed . | . . . . Part Schematics Acquired . | . . . . Parts Damaged . | . . . . Bothacking | -11 -10 -10 -9 ------------ Run | Yrd Mat Sub Scr Used RIF Installer . | . . . . Robots Hacked . | . . . . Non-combat . | . . . . Combat . | . . . . Robot Hacks Applied . | . . . . Relay Couplers Released . | . . . . Fabnet Peak Effective % . | . . . . Robots Rewired . | . . . . Allies Hacked . | . . . . Hacks Repelled . | . . . . Allies | -11 -10 -10 -9 -------- Run | Yrd Mat Sub Scr Total Allies . | . . . . Largest Group . | . . . . Highest-Rated Group . | . . . . Highest-Rated Ally . | . . . . Total Orders . | . . . . Ally Attacks . | . . . . Total Damage . | . . . . Kills . | . . . . Allies Corrupted . | . . . . Allies Melted 6 | . . . 6 Intel | -11 -10 -10 -9 ------- Run | Yrd Mat Sub Scr Active Infowar (turns) . | . . . . Robot Analysis Total . | . . . . Derelict Logs Recovered . | . . . . Drone Launches 3 | . . . 3 Drone Recoveries . | . . . . Exploration | -11 -10 -10 -9 ------------- Run | Yrd Mat Sub Scr Turns Passed 3807 | 55 116 257 3379 Spaces Moved 3179 | 50 91 129 2909 Core 15 | 15 . . . Treads 11 | . . . 11 Legs . | . . . . Wheels 3153 | 35 91 129 2898 Hover . | . . . . Flight . | . . . . Fastest Speed 50 | 50 90 90 90 Average Speed 108 | 77 90 90 110 Slowest Speed 295 | 90 90 90 295 Overloaded Moves . | . . . . Propulsion Burnouts . | . . . . Robots Hopped . | . . . . Potential Cave-ins . | . . . . Cave-ins Triggered . | . . . . Exploration Rate (%) 32 | 4 14 19 94 Regions Visited 3 Branch Regions 2 Pre-discovered Areas . | . . . . Known Exits Taken . | . . . . Unknown Exits Taken 3 | 1 1 1 . Scrap Searched 3 | . . . 3 Spaces Dug . | . . . . Terrain Destroyed . | . . . . Melee . | . . . . Projectile . | . . . . AOE . | . . . . Terrain Rammed . | . . . . Walls Destroyed . | . . . . Machines Disabled . | . . . . Actions | -11 -10 -10 -9 --------- Run | Yrd Mat Sub Scr Total 3496 | 65 123 258 3050 Wait 202 | . 23 119 60 Move 3176 | 49 90 128 2909 Hop . | . . . . Pick Up 48 | 10 5 1 32 Fast Attach 5 | . . . 5 Attach 15 | 5 2 . 8 Detach 1 | . . . 1 Swap 6 | 1 . 1 4 Drop 20 | . 1 1 18 Fire 19 | . 2 8 9 Melee 3 | . . . 3 Ram . | . . . . Kick . | . . . . Crush . | . . . . Escape Stasis . | . . . . Rewire 1 | . . . 1 Trap . | . . . . Miscellaneous . | . . . . Route ------- -11/Scrapyard -10/Materials (discovered 2 exits: [*Mat] / [*Sub]) -10/Subcaves (discovered 2 exits: [*Rec] / *Scr) -9/Scraptown (discovered 2 exits: [*Fac x2]) History --------- Turn | Location | Event 9 | -11/Scrapyard | Discovered new exit (range 15) 56 | -11/Scrapyard | Entered Materials 57 | -10/Materials | Met a group of wandering Federalists 145 | -10/Materials | Discovered new exit (range 10) 146 | -10/Materials | Discovered new exit (range 5) 172 | -10/Materials | Entered Subcaves 172 | -10/Subcaves | Accompanied by 1 ally 173 | -10/Subcaves | Continued accompanying wandering Federalists (4) 173 | -10/Subcaves | Approached by a straggling Scientist 217 | -10/Subcaves | Shifting Twisted Machinery released Sub. Monowheel 315 | -10/Subcaves | Build established: Mutant 351 | -10/Subcaves | Discovered new exit (range 14) 412 | -10/Subcaves | Wandering Federalist uncovered a shortcut to Scraptown 429 | -10/Subcaves | Entered Scraptown 675 | -9/Scraptown | Visited Symbiants 693 | -9/Scraptown | Visited Cyclists 709 | -9/Scraptown | Heard Great Nut preacher, LISTEN AND RECITE! 884 | -9/Scraptown | Discovered new exit (range 3) 986 | -9/Scraptown | Visited Comm Corps 1037 | -9/Scraptown | Visited Cave Peace 1074 | -9/Scraptown | Visited SPCMW 1118 | -9/Scraptown | Visited UFD Registry 1138 | -9/Scraptown | Visited Science Testing Area 1160 | -9/Scraptown | Visited Junk Repository 1845 | -9/Scraptown | Registered with UFD as "Novaspreader" 1885 | -9/Scraptown | Visited Cartography Club 1962 | -9/Scraptown | Visited Derelict Rescue Squad 1989 | -9/Scraptown | Visited Abandonware Association 2027 | -9/Scraptown | Discovered new exit (range 11) 2107 | -9/Scraptown | Visited LU-1G1's Boring Crew 2153 | -9/Scraptown | Visited Scrap Suit Storage 2180 | -9/Scraptown | Visited Junk Cannon Lab 2219 | -9/Scraptown | Visited Observation Area 2272 | -9/Scraptown | Visited Chapter 10 2286 | -9/Scraptown | Visited Curators Association 3057 | -9/Scraptown | Build established: Hauler-Mutant 3282 | -9/Scraptown | Met Optimus 3282 | -9/Scraptown | Accepted into 0bPrime 3535 | -9/Scraptown | Civil war broke out across Scraptown 3643 | -9/Scraptown | Lost 10 allies 3704 | -9/Scraptown | Optimus destroyed in the chaos of civil war 3789 | -9/Scraptown | Core integrity fell below 50% 3797 | -9/Scraptown | Core integrity fell below 20% 3808 | -9/Scraptown | Destroyed by 4L-7Y0(j) with Overtuned Pulse Rifle Last Messages --------------- 03778_ Acquired Gauss Rifle. 03780_ 11-PGR(g) destroyed. 03781_ Barrage Gun destroyed. 03781_ Lgt. Fission Core destroyed. 03781_ Penetrated by Bolt. 03785_ Slug penetrates 2E-MPY(j). 03786_ 2E-MPY(j) cannibalizes Ovr. Titanium Leg to repair Ovr. Titanium Leg. 03786_ NL-ZNP(h) destroyed. 03786_ H6-WGG(g) suffers critical hit (Burn). 03787_ H6-WGG(g) heat spikes uncontrollably. 03788_ 2E-MPY(j) heat damages Lgt. Deuterium Engine. 03791_ Salvaging Laser destroyed. 03794_ 2E-MPY(j) heat damages Mak. Salvage Targeting Computer. 03798_ Critical hit (Burn: +50). 03807_ Ovr. Treads destroyed. 03808_ 2E-MPY(j) destroyed. 03808_ Critical hit (Burn: +50). Map ----- +----------------------------------------------------+ | ??????##?#####?#?################################ | | ????#?##?#?##?#??######################?########## | | ????????#?# ?# ? ?# ############################ | | ???#?#??#?# ?? #?# ##########""""""""############# | | ######?##?#?? ?? #####*######" &&" "############# | | ###?## ?? # # #?####" "##"""""""""## | | """" ####?? ?### ## # ######"" ""## " " " ## | | "" ##??##?# ?### ######" "## ## | | " ##???# ? #X#### #?####"" ""## "# #" ## | | " #?#### # #### ## ######" "#" % "X#" ## | | " #?##?? # # ######"" % #"*=!"##" ## | | " ########### ########### = #"[%! """ ## | | "" ##### ###### ##[! ## | | """" #?### ###### ## ## | | ###############!########### #########"# ##### | | ### ####?#?#########%########### ##########"%##""# | | #######?#"""==* """""" ="" """""" !! | | ###?#####" =%[ *!%!! %= !!% | | #?#####?#" * !%== !% [ %!*= | | #####?### !=[ ! | | #########" | | ##?######"* | | #####""""%! """"""""""""""" """"""""""" | | ###?#""""!! """"""""""""""""""""""""""" | | #####"""" "###### ################"" | | #####"""" [! j%@ ###########"" | | #####"""" ! j!# X"##########"" | | ###"#"""" g "# "" "" ###########"" | | ""#"#"""" g[ ""# "" "" X"##########"" | | """"#"""" ""# " " ######### #"" | | ""####### [ "" M "" ![ | | #########*!=! "" "" =%= | | #########"%![! "# " " ######### #"" | | =! !! =%!![= ""# "" "" ""##########"" | | !%[ !%= %[[%=!=! ""# "" " ###########"" | | = !* [= !%!!===! # X"##########"" | | %! % =!=!=!=*= ###########"" | | * =%=%[%! ";;### ################"" | | =!%=!=! """" """""""""""""""""""""" | | *%= !!!![! ! " " """"""""""""""""""""" | | !%!* !%[*!! !*[ | | !!![! [ !==!!%=! | | !%!=%! =*![!!=[[[ | | *%!=!#""""# *!**[![*%% | | !=![=#""""# !%[%%%=!== | | = #""""#""""&[[[=%"""""""" """"""""""" """ | | #### ####""""######*[=########## ########### ### | | ### ####""""##" "# ## | | ### ####"?""###"" ""#### "##"" | | ### ####""""###!" "&### ""##" " | +----------------------------------------------------+ Best States ------------- Heat Dissipation 39 Energy Generation 18 Energy Capacity 250 Matter Stores 300 Matter Capacity 300 Sight Range 16 Terrain Scan Density 10 Evasion (%) 50 Recoil Reduction 2 Item Schematics ----------------- None Robot Schematics ------------------ None Fabricated ------------ Nothing Repaired ---------- Nothing Alien Tech Used ----------------- None Achievements -------------- None Challenges ------------ None Game ------ Seed NeutrinoShockPod Manual? 0 Play Time 00:25:29 Cumulative 57.0 hours Start 2025.07.29 @ 23:16:26 End 2025.07.29 @ 23:40:59 Sessions 1 Manual Loads 0 Difficulty Rogue Special Mode None Game No. 111 Rogue 111 Adventurer 0 Explorer 0 Win Type - Total 0 Types 0/0/0/0/0/0/0/0/0/0 Lore% 11 Gallery% 35 Achievement% 27 Wizard Run 0 Options --------- Layout 1 ASCII 0 Keyboard 0 Movement Mouse Keybinds 0 Fullscreen 2 Font 32/SmallcapsGlow Map View 50x35 Zoom Use 0% Tactical HUD 1 Map Filters NONE Filters NONE Steam 1 RUN: 9c575d2e-e58d-4e0b-94bc-2d34582cfabe